[Event "Early-Titled-Tuesday-Blitz-June-18-2024"]
[Site "Chess.com"]
[Date "2024.06.18"]
[Round "6"]
[White "suyu28"]
[Black "ChessLover0108"]
[Result "0-1"]
[WhiteElo "2767"]
[BlackElo "2917"]
[TimeControl "180+1"]
[EndTime "9:11:36 PDT"]
[Termination "ChessLover0108 won by checkmate"]

1. d4 {[%clk 0:02:55.9]} 1... d5 {[%clk 0:02:57.6]} 2. c4 {[%clk 0:02:55.8]}
2... e6 {[%clk 0:02:57.6]} 3. Nc3 {[%clk 0:02:55.2]} 3... Nf6 {[%clk 0:02:58.2]}
4. cxd5 {[%clk 0:02:55.1]} 4... exd5 {[%clk 0:02:59.1]} 5. Bg5 {[%clk 0:02:55]}
5... Be7 {[%clk 0:02:58]} 6. e3 {[%clk 0:02:55.2]} 6... h6 {[%clk 0:02:58.1]} 7.
Bf4 {[%clk 0:02:53.3]} 7... Bd6 {[%clk 0:02:52.3]} 8. Bd3 {[%clk 0:02:43]} 8...
Bxf4 {[%clk 0:02:48.9]} 9. exf4 {[%clk 0:02:43]} 9... O-O {[%clk 0:02:49.8]} 10.
Nf3 {[%clk 0:02:37.6]} 10... Bg4 {[%clk 0:02:49.4]} 11. O-O {[%clk 0:02:36.7]}
11... Nc6 {[%clk 0:02:38.4]} 12. Be2 {[%clk 0:02:34.1]} 12... Bxf3 {[%clk
0:02:34.8]} 13. Bxf3 {[%clk 0:02:35]} 13... Re8 {[%clk 0:02:29.1]} 14. g3 {[%clk
0:02:31.4]} 14... Qd6 {[%clk 0:02:22]} 15. Rc1 {[%clk 0:02:27.4]} 15... Rad8
{[%clk 0:02:15.8]} 16. Kg2 {[%clk 0:02:24.7]} 16... Qb4 {[%clk 0:02:11.9]} 17.
Ne2 {[%clk 0:02:16.4]} 17... Ne4 {[%clk 0:01:54.9]} 18. Rc2 {[%clk 0:02:00]}
18... Qb6 {[%clk 0:01:48.5]} 19. a3 {[%clk 0:01:58.9]} 19... a5 {[%clk
0:01:42.5]} 20. Qd3 {[%clk 0:01:48.1]} 20... Nb8 {[%clk 0:01:07.8]} 21. Nc3
{[%clk 0:01:42.3]} 21... Nxc3 {[%clk 0:01:07.2]} 22. Qxc3 {[%clk 0:01:09.4]}
22... c6 {[%clk 0:01:04.6]} 23. h4 {[%clk 0:01:04.6]} 23... Nd7 {[%clk
0:01:03.5]} 24. b4 {[%clk 0:00:58]} 24... a4 {[%clk 0:00:57.3]} 25. Qd3 {[%clk
0:00:55.7]} 25... Nf6 {[%clk 0:00:29.5]} 26. b5 {[%clk 0:00:49.1]} 26... Ne4
{[%clk 0:00:20.8]} 27. Rfc1 {[%clk 0:00:17]} 27... Rd6 {[%clk 0:00:20.6]} 28.
bxc6 {[%clk 0:00:12]} 28... bxc6 {[%clk 0:00:21.5]} 29. h5 {[%clk 0:00:11.4]}
29... Nf6 {[%clk 0:00:13.6]} 30. Rc3 {[%clk 0:00:08]} 30... Rde6 {[%clk
0:00:09.4]} 31. Rb1 {[%clk 0:00:06.3]} 31... Qa5 {[%clk 0:00:06.8]} 32. Rb4
{[%clk 0:00:06.5]} 32... Ne4 {[%clk 0:00:06.4]} 33. Rc2 {[%clk 0:00:06.3]} 33...
Nf6 {[%clk 0:00:04.9]} 34. Rc5 {[%clk 0:00:05.5]} 34... Qa7 {[%clk 0:00:04.8]}
35. Qc2 {[%clk 0:00:05.3]} 35... Re1 {[%clk 0:00:04.7]} 36. Qxa4 {[%clk
0:00:05.2]} 36... Qe7 {[%clk 0:00:04.8]} 37. Qxc6 {[%clk 0:00:04.7]} 37... Ra1
{[%clk 0:00:03.9]} 38. Rc1 {[%clk 0:00:04.7]} 38... Rxa3 {[%clk 0:00:04.2]} 39.
Rb7 {[%clk 0:00:04.8]} 39... Qf8 {[%clk 0:00:03.4]} 40. Qc7 {[%clk 0:00:04.4]}
40... Raa8 {[%clk 0:00:02.7]} 41. Rcb1 {[%clk 0:00:04]} 41... Rac8 {[%clk
0:00:02.9]} 42. Qb6 {[%clk 0:00:04.4]} 42... Rc3 {[%clk 0:00:03.3]} 43. Qb5
{[%clk 0:00:04.2]} 43... Qd6 {[%clk 0:00:02.2]} 44. Rb8 {[%clk 0:00:03.7]} 44...
Qe6 {[%clk 0:00:01.7]} 45. Rxe8+ {[%clk 0:00:03.3]} 45... Nxe8 {[%clk
0:00:02.6]} 46. Qxd5 {[%clk 0:00:01.7]} 46... Qxd5 {[%clk 0:00:01.8]} 47. Bxd5
{[%clk 0:00:02.6]} 47... Nf6 {[%clk 0:00:02.7]} 48. Rb8+ {[%clk 0:00:02.7]}
48... Kh7 {[%clk 0:00:01.6]} 49. Bf3 {[%clk 0:00:03.6]} 49... Rc7 {[%clk
0:00:01.4]} 50. Rb7 {[%clk 0:00:02.1]} 50... Rxb7 {[%clk 0:00:01.3]} 51. Bxb7
{[%clk 0:00:03]} 51... Nxh5 {[%clk 0:00:02.1]} 52. Kf3 {[%clk 0:00:03.2]} 52...
Nf6 {[%clk 0:00:02.6]} 53. Be4+ {[%clk 0:00:02.8]} 53... Kg8 {[%clk 0:00:02.7]}
54. g4 {[%clk 0:00:02.7]} 54... Kf8 {[%clk 0:00:03.4]} 55. g5 {[%clk 0:00:03.2]}
55... Ng8 {[%clk 0:00:03.3]} 56. Bf5 {[%clk 0:00:03.3]} 56... Ne7 {[%clk
0:00:03.1]} 57. Ke4 {[%clk 0:00:03.1]} 57... h5 {[%clk 0:00:02.7]} 58. Bh3
{[%clk 0:00:03.1]} 58... Ng6 {[%clk 0:00:02.2]} 59. d5 {[%clk 0:00:02.5]} 59...
Ke7 {[%clk 0:00:02.8]} 60. f5 {[%clk 0:00:03]} 60... Nf8 {[%clk 0:00:03.5]} 61.
Kd4 {[%clk 0:00:02.3]} 61... Kd6 {[%clk 0:00:04]} 62. f4 {[%clk 0:00:02.3]}
62... f6 {[%clk 0:00:04.1]} 63. Bg2 {[%clk 0:00:02.1]} 63... h4 {[%clk
0:00:04.2]} 64. Bh3 {[%clk 0:00:02.1]} 64... Nh7 {[%clk 0:00:04.7]} 65. g6
{[%clk 0:00:01.2]} 65... Nf8 {[%clk 0:00:05]} 66. Ke4 {[%clk 0:00:01.7]} 66...
Nd7 {[%clk 0:00:05.9]} 67. Kf3 {[%clk 0:00:01.7]} 67... Kxd5 {[%clk 0:00:06.5]}
68. Kg4 {[%clk 0:00:02.3]} 68... Ke4 {[%clk 0:00:07.1]} 69. Bg2+ {[%clk
0:00:02.3]} 69... Ke3 {[%clk 0:00:07.6]} 70. Bd5 {[%clk 0:00:02.6]} 70... Nc5
{[%clk 0:00:07.7]} 71. Kxh4 {[%clk 0:00:02.7]} 71... Kxf4 {[%clk 0:00:08.1]} 72.
Kh5 {[%clk 0:00:02.8]} 72... Kxf5 {[%clk 0:00:08.4]} 73. Bc4 {[%clk 0:00:02.9]}
73... Ne4 {[%clk 0:00:08.5]} 74. Bd3 {[%clk 0:00:03.3]} 74... Kf4 {[%clk
0:00:09.2]} 75. Kh4 {[%clk 0:00:02.8]} 75... Ng3 {[%clk 0:00:09.9]} 76. Bc2
{[%clk 0:00:02.5]} 76... Nf5+ {[%clk 0:00:10.1]} 77. Kh5 {[%clk 0:00:02.9]}
77... Nd4 {[%clk 0:00:10.9]} 78. Bd3 {[%clk 0:00:03]} 78... Nc6 {[%clk
0:00:11.5]} 79. Bc4 {[%clk 0:00:03.3]} 79... Ne5 {[%clk 0:00:12.4]} 80. Be6
{[%clk 0:00:03.5]} 80... Ke4 {[%clk 0:00:12.8]} 81. Kh4 {[%clk 0:00:03.1]} 81...
Nxg6+ {[%clk 0:00:12.6]} 82. Kh5 {[%clk 0:00:03.7]} 82... Ne5 {[%clk 0:00:13.5]}
83. Bg8 {[%clk 0:00:03.5]} 83... g5 {[%clk 0:00:13.8]} 84. Kh6 {[%clk
0:00:02.9]} 84... Kf4 {[%clk 0:00:14.4]} 85. Be6 {[%clk 0:00:02.7]} 85... g4
{[%clk 0:00:14.3]} 86. Kh5 {[%clk 0:00:03.3]} 86... g3 {[%clk 0:00:14.7]} 87.
Bh3 {[%clk 0:00:03.4]} 87... Nf3 {[%clk 0:00:14.3]} 88. Kg6 {[%clk 0:00:03.5]}
88... f5 {[%clk 0:00:13.8]} 89. Kh5 {[%clk 0:00:03.8]} 89... Ne1 {[%clk
0:00:14]} 90. Kh4 {[%clk 0:00:03]} 90... g2 {[%clk 0:00:14.9]} 91. Bxg2 {[%clk
0:00:02.9]} 91... Nxg2+ {[%clk 0:00:15.8]} 92. Kh3 {[%clk 0:00:03.5]} 92... Ne3
{[%clk 0:00:16.7]} 93. Kh4 {[%clk 0:00:03.8]} 93... Kf3 {[%clk 0:00:17]} 94. Kh3
{[%clk 0:00:04.4]} 94... f4 {[%clk 0:00:17.4]} 95. Kh2 {[%clk 0:00:04.9]} 95...
Ke2 {[%clk 0:00:18]} 96. Kh3 {[%clk 0:00:05.5]} 96... f3 {[%clk 0:00:18.9]} 97.
Kg3 {[%clk 0:00:06]} 97... f2 {[%clk 0:00:19.3]} 98. Kh2 {[%clk 0:00:06.6]}
98... f1=Q {[%clk 0:00:19.9]} 99. Kg3 {[%clk 0:00:07.1]} 99... Qf5 {[%clk
0:00:20.4]} 100. Kh2 {[%clk 0:00:07.6]} 100... Qg4 {[%clk 0:00:20.8]} 101. Kh1
{[%clk 0:00:08]} 101... Qg2# {[%clk 0:00:21.7]} 0-1

[Event "Early-Titled-Tuesday-Blitz-June-18-2024"]
[Site "Chess.com"]
[Date "2024.06.18"]
[Round "6"]
[White "viktorskliarov"]
[Black "Naruto75_3"]
[Result "1/2-1/2"]
[WhiteElo "2646"]
[BlackElo "2503"]
[TimeControl "180+1"]
[EndTime "9:11:42 PDT"]
[Termination "Game drawn - insufficient material"]

1. e4 {[%clk 0:03:00.9]} 1... c5 {[%clk 0:02:58.5]} 2. Nf3 {[%clk 0:02:59.7]}
2... d6 {[%clk 0:02:58.3]} 3. d4 {[%clk 0:02:59.8]} 3... cxd4 {[%clk 0:02:59]}
4. Qxd4 {[%clk 0:03:00.7]} 4... Nc6 {[%clk 0:02:57.6]} 5. Bb5 {[%clk 0:03:00.3]}
5... Bd7 {[%clk 0:02:56.9]} 6. Bxc6 {[%clk 0:03:00.7]} 6... Bxc6 {[%clk
0:02:52.9]} 7. Nc3 {[%clk 0:03:00.6]} 7... Nf6 {[%clk 0:02:51.4]} 8. Bg5 {[%clk
0:03:00.1]} 8... e6 {[%clk 0:02:50]} 9. O-O-O {[%clk 0:03:00.1]} 9... Be7 {[%clk
0:02:47.9]} 10. Rhe1 {[%clk 0:02:59.7]} 10... Qa5 {[%clk 0:02:44.8]} 11. Kb1
{[%clk 0:02:51.9]} 11... O-O {[%clk 0:02:43.6]} 12. Qd2 {[%clk 0:02:51.1]} 12...
Rac8 {[%clk 0:02:38.2]} 13. Nd5 {[%clk 0:02:49.5]} 13... Qd8 {[%clk 0:02:36.1]}
14. Nxe7+ {[%clk 0:02:15.5]} 14... Qxe7 {[%clk 0:02:36.9]} 15. Bxf6 {[%clk
0:02:16.1]} 15... Qxf6 {[%clk 0:02:35.9]} 16. Nd4 {[%clk 0:02:03.2]} 16... h6
{[%clk 0:02:31.1]} 17. f4 {[%clk 0:01:55]} 17... Rfd8 {[%clk 0:02:23.6]} 18. g3
{[%clk 0:01:49.7]} 18... Qe7 {[%clk 0:02:22.5]} 19. Qb4 {[%clk 0:01:42.9]} 19...
Qc7 {[%clk 0:02:12]} 20. Rd2 {[%clk 0:01:42.1]} 20... Be8 {[%clk 0:02:08.7]} 21.
Red1 {[%clk 0:01:19.6]} 21... d5 {[%clk 0:02:04.8]} 22. e5 {[%clk 0:01:10.4]}
22... a5 {[%clk 0:02:03.2]} 23. Qb3 {[%clk 0:01:04.4]} 23... a4 {[%clk
0:01:56.7]} 24. Qe3 {[%clk 0:01:02.8]} 24... b5 {[%clk 0:01:48.7]} 25. f5 {[%clk
0:01:01.3]} 25... Qe7 {[%clk 0:01:36.8]} 26. h4 {[%clk 0:00:46]} 26... b4 {[%clk
0:01:31.9]} 27. Rf1 {[%clk 0:00:37.8]} 27... exf5 {[%clk 0:01:26.7]} 28. Nxf5
{[%clk 0:00:36.5]} 28... Qe6 {[%clk 0:01:25.8]} 29. Nd4 {[%clk 0:00:35.6]} 29...
Qg6 {[%clk 0:01:17.3]} 30. e6 {[%clk 0:00:29.3]} 30... fxe6 {[%clk 0:01:09.9]}
31. Nxe6 {[%clk 0:00:29.2]} 31... Bb5 {[%clk 0:01:09.1]} 32. Nxd8 {[%clk
0:00:24.8]} 32... Bxf1 {[%clk 0:01:06.8]} 33. Ne6 {[%clk 0:00:14.7]} 33... b3
{[%clk 0:01:04.3]} 34. axb3 {[%clk 0:00:13.5]} 34... axb3 {[%clk 0:01:02.4]} 35.
Nf4 {[%clk 0:00:13.7]} 35... bxc2+ {[%clk 0:01:00.3]} 36. Kc1 {[%clk 0:00:14.2]}
36... Qa6 {[%clk 0:00:52.3]} 37. Qe6+ {[%clk 0:00:13.1]} 37... Qxe6 {[%clk
0:00:50.6]} 38. Nxe6 {[%clk 0:00:14]} 38... Bc4 {[%clk 0:00:43.6]} 39. Nd4
{[%clk 0:00:12.6]} 39... Rf8 {[%clk 0:00:42.5]} 40. Rxc2 {[%clk 0:00:12.1]}
40... Rf1+ {[%clk 0:00:41.5]} 41. Kd2 {[%clk 0:00:12.1]} 41... Rg1 {[%clk
0:00:41.6]} 42. Rc3 {[%clk 0:00:11]} 42... Rg2+ {[%clk 0:00:40.8]} 43. Kc1
{[%clk 0:00:11.3]} 43... Kf7 {[%clk 0:00:39.6]} 44. b3 {[%clk 0:00:11.4]} 44...
Ba6 {[%clk 0:00:39.2]} 45. Re3 {[%clk 0:00:11.1]} 45... Bc8 {[%clk 0:00:34.3]}
46. b4 {[%clk 0:00:10.6]} 46... Ra2 {[%clk 0:00:30.1]} 47. Kb1 {[%clk
0:00:09.2]} 47... Ra4 {[%clk 0:00:29.6]} 48. Rb3 {[%clk 0:00:09.2]} 48... Bd7
{[%clk 0:00:29.4]} 49. Kb2 {[%clk 0:00:09.5]} 49... g5 {[%clk 0:00:27.5]} 50.
Rf3+ {[%clk 0:00:09.3]} 50... Kg6 {[%clk 0:00:24.8]} 51. Kb3 {[%clk 0:00:09.9]}
51... Ra1 {[%clk 0:00:23.2]} 52. b5 {[%clk 0:00:08.7]} 52... Rd1 {[%clk
0:00:23]} 53. Kc3 {[%clk 0:00:05.9]} 53... Rc1+ {[%clk 0:00:22.3]} 54. Kb3
{[%clk 0:00:04.7]} 54... Rb1+ {[%clk 0:00:20.5]} 55. Ka4 {[%clk 0:00:04.8]}
55... Rd1 {[%clk 0:00:19.5]} 56. Nc6 {[%clk 0:00:04.9]} 56... gxh4 {[%clk
0:00:15.6]} 57. gxh4 {[%clk 0:00:04.2]} 57... Re1 {[%clk 0:00:15.1]} 58. Rf4
{[%clk 0:00:03.8]} 58... Re4+ {[%clk 0:00:13.6]} 59. Rxe4 {[%clk 0:00:03.3]}
59... dxe4 {[%clk 0:00:14.5]} 60. Nd4 {[%clk 0:00:02.9]} 60... e3 {[%clk
0:00:13.9]} 61. Kb4 {[%clk 0:00:02.9]} 61... Kf6 {[%clk 0:00:13.6]} 62. b6
{[%clk 0:00:03.4]} 62... Bc8 {[%clk 0:00:13.5]} 63. Kc3 {[%clk 0:00:03.9]} 63...
Ba6 {[%clk 0:00:12.1]} 64. Nf3 {[%clk 0:00:02.7]} 64... Kf5 {[%clk 0:00:11.7]}
65. Kd4 {[%clk 0:00:03.2]} 65... Kf4 {[%clk 0:00:10.6]} 66. Ne1 {[%clk
0:00:03.5]} 66... e2 {[%clk 0:00:10.5]} 67. h5 {[%clk 0:00:03.5]} 67... Kg5
{[%clk 0:00:09.9]} 68. Ke3 {[%clk 0:00:04.2]} 68... Kxh5 {[%clk 0:00:10]} 69. b7
{[%clk 0:00:04.9]} 69... Bxb7 {[%clk 0:00:09.2]} 70. Kxe2 {[%clk 0:00:05.8]}
70... Kg4 {[%clk 0:00:09.5]} 71. Kf2 {[%clk 0:00:06.1]} 71... h5 {[%clk
0:00:09.2]} 72. Kg1 {[%clk 0:00:05.9]} 72... h4 {[%clk 0:00:09.6]} 73. Kh2
{[%clk 0:00:05.5]} 73... Be4 {[%clk 0:00:07.4]} 74. Ng2 {[%clk 0:00:05.6]} 74...
h3 {[%clk 0:00:04.5]} 75. Ne3+ {[%clk 0:00:05.9]} 75... Kf3 {[%clk 0:00:04.7]}
76. Nf1 {[%clk 0:00:05.8]} 76... Bf5 {[%clk 0:00:03.5]} 77. Ng3 {[%clk
0:00:06.2]} 77... Bg4 {[%clk 0:00:03.5]} 78. Nf1 {[%clk 0:00:06.2]} 78... Ke2
{[%clk 0:00:04]} 79. Ng3+ {[%clk 0:00:06.4]} 79... Ke3 {[%clk 0:00:04.2]} 80.
Nf1+ {[%clk 0:00:06.5]} 80... Kd3 {[%clk 0:00:03.8]} 81. Ng3 {[%clk 0:00:07.4]}
81... Ke3 {[%clk 0:00:02.3]} 82. Nf1+ {[%clk 0:00:07.5]} 82... Kf2 {[%clk
0:00:03.2]} 83. Ng3 {[%clk 0:00:08]} 83... Be6 {[%clk 0:00:02.5]} 84. Ne4+
{[%clk 0:00:07.7]} 84... Kf3 {[%clk 0:00:02.9]} 85. Ng5+ {[%clk 0:00:08.2]}
85... Kg4 {[%clk 0:00:03.1]} 86. Nxe6 {[%clk 0:00:07.5]} 86... Kf5 {[%clk
0:00:02.8]} 87. Nd4+ {[%clk 0:00:08.2]} 87... Ke4 {[%clk 0:00:03.7]} 88. Ne2
{[%clk 0:00:08.9]} 88... Ke3 {[%clk 0:00:03.6]} 89. Ng1 {[%clk 0:00:09.8]} 89...
Ke4 {[%clk 0:00:03.3]} 90. Nxh3 {[%clk 0:00:10.7]} 1/2-1/2

[Event "Early-Titled-Tuesday-Blitz-June-18-2024"]
[Site "Chess.com"]
[Date "2024.06.18"]
[Round "6"]
[White "Eagle_2019"]
[Black "Herzog2012"]
[Result "0-1"]
[WhiteElo "2846"]
[BlackElo "2636"]
[TimeControl "180+1"]
[EndTime "9:12:10 PDT"]
[Termination "Herzog2012 won on time"]

1. e4 {[%clk 0:03:00.9]} 1... c5 {[%clk 0:02:57.8]} 2. Nf3 {[%clk 0:03:00.6]}
2... d6 {[%clk 0:02:58]} 3. Bb5+ {[%clk 0:03:00]} 3... Nd7 {[%clk 0:02:57.4]} 4.
O-O {[%clk 0:02:55.4]} 4... a6 {[%clk 0:02:56.4]} 5. Be2 {[%clk 0:02:55.2]} 5...
Ngf6 {[%clk 0:02:52.9]} 6. Nc3 {[%clk 0:02:52.9]} 6... g6 {[%clk 0:02:50.8]} 7.
d4 {[%clk 0:02:52.4]} 7... cxd4 {[%clk 0:02:49.4]} 8. Nxd4 {[%clk 0:02:53.3]}
8... Bg7 {[%clk 0:02:49.3]} 9. Be3 {[%clk 0:02:53]} 9... O-O {[%clk 0:02:46.5]}
10. a4 {[%clk 0:02:52.8]} 10... Qc7 {[%clk 0:02:36.9]} 11. a5 {[%clk 0:02:50.2]}
11... Nc5 {[%clk 0:02:28.1]} 12. f3 {[%clk 0:02:36]} 12... Bd7 {[%clk
0:02:25.1]} 13. Nd5 {[%clk 0:02:24.9]} 13... Nxd5 {[%clk 0:02:24.6]} 14. exd5
{[%clk 0:02:25.8]} 14... b5 {[%clk 0:02:12.4]} 15. axb6 {[%clk 0:02:10]} 15...
Qxb6 {[%clk 0:02:10.9]} 16. Qd2 {[%clk 0:02:10]} 16... a5 {[%clk 0:01:52.6]} 17.
Ra2 {[%clk 0:02:07.8]} 17... a4 {[%clk 0:01:47.8]} 18. Rfa1 {[%clk 0:01:49.7]}
18... Rab8 {[%clk 0:01:47.1]} 19. Kh1 {[%clk 0:01:45.2]} 19... Rfc8 {[%clk
0:01:44.1]} 20. c3 {[%clk 0:01:30.8]} 20... Nb3 {[%clk 0:01:32.4]} 21. Nxb3
{[%clk 0:01:29.3]} 21... Qxb3 {[%clk 0:01:33.3]} 22. Bd1 {[%clk 0:01:27]} 22...
Qb7 {[%clk 0:01:25.1]} 23. Rb1 {[%clk 0:01:10.3]} 23... Bf5 {[%clk 0:01:12.3]}
24. Rba1 {[%clk 0:01:08]} 24... a3 {[%clk 0:01:10.4]} 25. Rxa3 {[%clk
0:00:58.6]} 25... Qxb2 {[%clk 0:01:08.9]} 26. Qxb2 {[%clk 0:00:57.6]} 26... Rxb2
{[%clk 0:01:08.6]} 27. Ra8 {[%clk 0:00:57]} 27... Rbb8 {[%clk 0:00:54.6]} 28.
Rxb8 {[%clk 0:00:55.2]} 28... Rxb8 {[%clk 0:00:55.5]} 29. Bd2 {[%clk 0:00:55.2]}
29... h5 {[%clk 0:00:49.8]} 30. Kg1 {[%clk 0:00:52.5]} 30... Rb2 {[%clk
0:00:46.6]} 31. Be1 {[%clk 0:00:51.3]} 31... Bh6 {[%clk 0:00:38.4]} 32. Bf2
{[%clk 0:00:46.5]} 32... Bg7 {[%clk 0:00:28.8]} 33. Rc1 {[%clk 0:00:46.1]} 33...
Rb1 {[%clk 0:00:22.8]} 34. Rxb1 {[%clk 0:00:45.1]} 34... Bxb1 {[%clk 0:00:23.7]}
35. c4 {[%clk 0:00:44.3]} 35... Bd3 {[%clk 0:00:20]} 36. Bb3 {[%clk 0:00:44]}
36... Be5 {[%clk 0:00:14.7]} 37. g3 {[%clk 0:00:37.3]} 37... g5 {[%clk
0:00:11.6]} 38. Be3 {[%clk 0:00:35.6]} 38... Bf6 {[%clk 0:00:06.3]} 39. c5
{[%clk 0:00:32.9]} 39... dxc5 {[%clk 0:00:06.1]} 40. Bxc5 {[%clk 0:00:33.8]}
40... Kf8 {[%clk 0:00:02.8]} 41. Kf2 {[%clk 0:00:34.1]} 41... Be5 {[%clk
0:00:02.6]} 42. Be3 {[%clk 0:00:33.1]} 42... f6 {[%clk 0:00:02.2]} 43. Bc5
{[%clk 0:00:31.8]} 43... Bd6 {[%clk 0:00:02.4]} 44. Be3 {[%clk 0:00:26.4]} 44...
Bg6 {[%clk 0:00:02.9]} 45. Bc4 {[%clk 0:00:24.3]} 45... Kg7 {[%clk 0:00:03.4]}
46. Ke2 {[%clk 0:00:24.4]} 46... Bf7 {[%clk 0:00:03.8]} 47. Kd3 {[%clk
0:00:23.9]} 47... h4 {[%clk 0:00:03.7]} 48. f4 {[%clk 0:00:23]} 48... hxg3
{[%clk 0:00:02.1]} 49. hxg3 {[%clk 0:00:23.2]} 49... Bg6+ {[%clk 0:00:02.8]} 50.
Ke2 {[%clk 0:00:22.7]} 50... gxf4 {[%clk 0:00:02.8]} 51. Bxf4 {[%clk 0:00:22.3]}
51... Bxf4 {[%clk 0:00:02.1]} 52. gxf4 {[%clk 0:00:23.2]} 52... Kh6 {[%clk
0:00:01.9]} 53. Ke3 {[%clk 0:00:22.8]} 53... Kh5 {[%clk 0:00:01.8]} 54. Bb5
{[%clk 0:00:17.4]} 54... Bf5 {[%clk 0:00:01.7]} 55. Be2+ {[%clk 0:00:13.5]}
55... Kh4 {[%clk 0:00:02.3]} 56. Kf2 {[%clk 0:00:13]} 56... Bg4 {[%clk
0:00:02.2]} 57. Bd3 {[%clk 0:00:12.7]} 57... Bc8 {[%clk 0:00:02.3]} 58. Bg6
{[%clk 0:00:12.6]} 58... Bb7 {[%clk 0:00:02.6]} 59. Bf7 {[%clk 0:00:12.1]} 59...
Kg4 {[%clk 0:00:03.1]} 60. Ke3 {[%clk 0:00:12.3]} 60... Kg3 {[%clk 0:00:02.6]}
61. Be6 {[%clk 0:00:12.4]} 61... Ba8 {[%clk 0:00:02.5]} 62. f5 {[%clk
0:00:11.9]} 62... Kg4 {[%clk 0:00:02.3]} 63. Kd4 {[%clk 0:00:12.1]} 63... Kg5
{[%clk 0:00:02.7]} 64. Kc5 {[%clk 0:00:12.3]} 64... Kf4 {[%clk 0:00:02.4]} 65.
Kd4 {[%clk 0:00:11.7]} 65... Bb7 {[%clk 0:00:02.1]} 66. Bd7 {[%clk 0:00:09.6]}
66... Ba6 {[%clk 0:00:02.6]} 67. d6 {[%clk 0:00:03.9]} 67... exd6 {[%clk
0:00:02.3]} 68. Kd5 {[%clk 0:00:04.4]} 68... Bd3 {[%clk 0:00:02.8]} 69. Kxd6
{[%clk 0:00:04.7]} 69... Bxf5 {[%clk 0:00:03.4]} 70. Bc6 {[%clk 0:00:04.7]}
70... Be4 {[%clk 0:00:03.8]} 71. Bd7 {[%clk 0:00:05]} 71... Kg5 {[%clk
0:00:03.7]} 72. Be6 {[%clk 0:00:04.8]} 72... Kf4 {[%clk 0:00:04]} 73. Ke7 {[%clk
0:00:04.8]} 73... Ke5 {[%clk 0:00:03.7]} 74. Kf7 {[%clk 0:00:04.2]} 74... Bf5
{[%clk 0:00:02.3]} 75. Bc4 {[%clk 0:00:04.1]} 75... Be4 {[%clk 0:00:02.2]} 76.
Bf1 {[%clk 0:00:02.9]} 76... f5 {[%clk 0:00:02.3]} 77. Kg6 {[%clk 0:00:03.4]}
77... f4+ {[%clk 0:00:02.6]} 78. Kg5 {[%clk 0:00:03.8]} 78... Bf5 {[%clk
0:00:03.1]} 79. Bg2 {[%clk 0:00:03.3]} 79... Be4 {[%clk 0:00:03.3]} 80. Bf1
{[%clk 0:00:03.3]} 80... Bf3 {[%clk 0:00:03.8]} 81. Bd3 {[%clk 0:00:02.9]} 81...
Bd1 {[%clk 0:00:04.1]} 82. Bg6 {[%clk 0:00:02.8]} 82... f3 {[%clk 0:00:03.7]}
83. Bd3 {[%clk 0:00:02.9]} 83... f2 {[%clk 0:00:04]} 84. Bf1 {[%clk 0:00:02.9]}
84... Bf3 {[%clk 0:00:04.2]} 85. Kh4 {[%clk 0:00:03.1]} 85... Kf4 {[%clk
0:00:04.3]} 86. Kh3 {[%clk 0:00:03.6]} 86... Ke3 {[%clk 0:00:04.7]} 87. Kg3
{[%clk 0:00:04.1]} 87... Be2 {[%clk 0:00:05.2]} 88. Bg2 {[%clk 0:00:04.5]} 88...
Ba6 {[%clk 0:00:05.5]} 89. Bh3 {[%clk 0:00:04.9]} 89... Ke2 {[%clk 0:00:05]} 90.
Bg2 {[%clk 0:00:04.8]} 90... Ke1 {[%clk 0:00:04.1]} 91. Bh3 {[%clk 0:00:05.2]}
91... Bb7 {[%clk 0:00:04.4]} 92. Kf4 {[%clk 0:00:04.5]} 92... Ke2 {[%clk
0:00:03.5]} 93. Bg4+ {[%clk 0:00:03.8]} 93... Kf1 {[%clk 0:00:02.8]} 94. Bh3+
{[%clk 0:00:04.2]} 94... Kg1 {[%clk 0:00:03.1]} 95. Kg3 {[%clk 0:00:04.4]} 95...
Ba8 {[%clk 0:00:03.5]} 96. Kf4 {[%clk 0:00:01.3]} 96... Bg2 {[%clk 0:00:03.8]}
97. Kg3 {[%clk 0:00:01.5]} 97... Bxh3 {[%clk 0:00:03.8]} 0-1

[Event "Early-Titled-Tuesday-Blitz-June-18-2024"]
[Site "Chess.com"]
[Date "2024.06.18"]
[Round "7"]
[White "xakevicius91"]
[Black "Onischuk_V"]
[Result "0-1"]
[WhiteElo "2635"]
[BlackElo "2827"]
[TimeControl "180+1"]
[EndTime "9:15:19 PDT"]
[Termination "Onischuk_V won by resignation"]

1. e4 {[%clk 0:03:00.9]} 1... d6 {[%clk 0:02:59]} 2. d4 {[%clk 0:03:00.9]} 2...
Nf6 {[%clk 0:02:58.6]} 3. Nc3 {[%clk 0:03:00.4]} 3... g6 {[%clk 0:02:58.8]} 4.
Nf3 {[%clk 0:03:00.2]} 4... Bg7 {[%clk 0:02:58.5]} 5. Bg5 {[%clk 0:03:00.8]}
5... h6 {[%clk 0:02:55.9]} 6. Be3 {[%clk 0:03:00]} 6... O-O {[%clk 0:02:54.4]}
7. h3 {[%clk 0:02:59.9]} 7... Nc6 {[%clk 0:02:51.8]} 8. Qd2 {[%clk 0:02:55.3]}
8... Kh7 {[%clk 0:02:49.9]} 9. O-O-O {[%clk 0:02:50.3]} 9... a6 {[%clk
0:02:47.5]} 10. d5 {[%clk 0:02:44]} 10... Na7 {[%clk 0:02:45.9]} 11. g4 {[%clk
0:02:44.4]} 11... Nb5 {[%clk 0:02:44.5]} 12. Bd3 {[%clk 0:02:12.2]} 12... Nxc3
{[%clk 0:02:43.5]} 13. bxc3 {[%clk 0:02:13.1]} 13... c5 {[%clk 0:02:37.3]} 14.
g5 {[%clk 0:02:11.7]} 14... hxg5 {[%clk 0:02:36.5]} 15. Nxg5+ {[%clk 0:02:11.6]}
15... Kg8 {[%clk 0:02:36.8]} 16. f4 {[%clk 0:02:06]} 16... Qa5 {[%clk 0:02:36]}
17. e5 {[%clk 0:01:56.6]} 17... Qa3+ {[%clk 0:02:29.5]} 18. Kb1 {[%clk
0:01:55.2]} 18... Nxd5 {[%clk 0:02:30.1]} 0-1

[Event "Early-Titled-Tuesday-Blitz-June-18-2024"]
[Site "Chess.com"]
[Date "2024.06.18"]
[Round "7"]
[White "lagedema"]
[Black "subham777"]
[Result "0-1"]
[WhiteElo "2439"]
[BlackElo "2598"]
[TimeControl "180+1"]
[EndTime "9:15:38 PDT"]
[Termination "subham777 won by resignation"]

1. d4 {[%clk 0:03:00.9]} 1... d5 {[%clk 0:02:59.4]} 2. Bf4 {[%clk 0:03:00.1]}
2... Nf6 {[%clk 0:02:59.1]} 3. Nf3 {[%clk 0:03:00]} 3... e6 {[%clk 0:02:59]} 4.
e3 {[%clk 0:03:00.5]} 4... Bd6 {[%clk 0:02:59.2]} 5. Bxd6 {[%clk 0:03:00.7]}
5... Qxd6 {[%clk 0:02:57.6]} 6. c3 {[%clk 0:03:01.2]} 6... Ne4 {[%clk
0:02:57.9]} 7. Bd3 {[%clk 0:03:00.8]} 7... O-O {[%clk 0:02:58.2]} 8. O-O {[%clk
0:02:59.5]} 8... f5 {[%clk 0:02:56.8]} 9. Nbd2 {[%clk 0:02:56.6]} 9... Nd7
{[%clk 0:02:56.1]} 10. Ne1 {[%clk 0:02:52.4]} 10... Rf6 {[%clk 0:02:52.2]} 11.
f3 {[%clk 0:02:50.6]} 11... Rh6 {[%clk 0:02:41.3]} 12. f4 {[%clk 0:02:51.1]}
12... Ndf6 {[%clk 0:02:38.9]} 13. Ndf3 {[%clk 0:02:45.9]} 13... Ng4 {[%clk
0:02:32.7]} 14. Qe2 {[%clk 0:02:42.2]} 14... Qd8 {[%clk 0:02:23.7]} 15. h3
{[%clk 0:02:39.4]} 15... Ng3 {[%clk 0:02:22.1]} 16. Qc2 {[%clk 0:02:31.3]} 16...
Nxe3 {[%clk 0:02:20.1]} 17. Qf2 {[%clk 0:02:30.1]} 17... Nexf1 {[%clk
0:02:17.3]} 18. Bxf1 {[%clk 0:02:29.5]} 18... Nxf1 {[%clk 0:02:17.8]} 19. Qxf1
{[%clk 0:02:29.8]} 19... Bd7 {[%clk 0:02:14.5]} 20. Ne5 {[%clk 0:02:27.6]} 20...
Be8 {[%clk 0:02:09.4]} 21. N1f3 {[%clk 0:02:26.5]} 21... Rc8 {[%clk 0:02:03.5]}
22. Ng5 {[%clk 0:02:23]} 22... c5 {[%clk 0:01:56]} 23. Nxe6 {[%clk 0:02:19.2]}
23... Rxe6 {[%clk 0:01:54]} 0-1